{"text_format":"1","workbook":"xlsx","n_sheets":7,"sheets":["pag. 1","pag. 2","pag. 3","pag. 4","pag. 5","pag. 6","pag. 7"],"not_rendered":{"charts":0,"images":1,"macros":1,"external_links":0,"defined_names":0,"comments":0,"pivot_tables":0},"unopened":[],"bounds":{"document_bytes":16777216,"sheet_cells":100000,"rows_first":2000,"rows_last":500,"rows_between":2000,"halvings":0,"cell_chars":16384,"cell_head_chars":4096},"cells_cut":0,"cells_raw":0,"read":"whole","date_system":"1900"}

{"sheet":"pag. 1","index":0,"n_rows":27,"n_cols":14,"rows_kept":27,"cut":false,"hidden":false,"merged":[[25,0,25,13],[26,0,26,13],[0,1,3,13],[15,5,16,7],[18,5,18,7],[18,8,18,13],[21,0,21,13],[22,0,22,13],[23,0,23,13],[24,0,24,13],[14,5,14,13],[15,9,15,11],[16,9,16,11],[17,5,17,7],[17,9,17,10],[17,12,17,13],[12,5,12,7],[12,8,12,10],[12,11,12,13],[13,5,13,7],[13,8,13,10],[13,11,13,13],[9,5,9,7],[9,8,9,13],[10,5,10,13],[11,0,11,4],[11,5,11,7],[11,8,11,13],[5,0,5,4],[5,5,5,13],[7,5,7,7],[7,8,7,13],[8,5,8,7],[8,8,8,13]]}
[null,"Progetto Biomasse - schede tecniche per la raccolta dati"]
[]
[]
[]
[]
["TIPOLOGIA DI IMPIANTO",null,null,null,null,"BIOGAS"]
[]
[null,null,null,null,null,"Digestore anaerobico [1] :",null,null,"Impianto con n.2 digestori mesofili"]
[null,null,null,null,null,"Denominazione impianto [2] :",null,null,"SOVERANO"]
[null,null,null,null,null,"Anno di realizzazione [3] :",null,null,2010]
[]
["PROFILO DELL'AZIENDA AGRICOLA",null,null,null,null,"Nome Impresa Agricola  [4] :",null,null,"ACETO RENATO"]
[null,null,null,null,null,"Regime Fiscale [5]:"]
[null,null,null,null,null,"Regime IVA [5]:"]
[]
[null,null,null,null,null,"Sede:                                                                  Ubicazione Impianto e attività zootecnica",null,null,"Via:","C.da Squarcio",null,null,"n.","snc"]
[null,null,null,null,null,null,null,null,"Comune","Bisignano",null,null,"(    )","CS"]
[null,null,null,null,null,"Recapiti :  responsabile tecnico Ing. Franco Aceto",null,null,"tel:",337988147,null,"sito internet:","aceto-f@libero.it"]
[null,null,null,null,null,"Superficie agricola aziendale: [6] ",null,null,"ha 200"]
[]
[]
["[1] specificare la tipologia tecnologica dell'impianto. Es. Specificare se si tratta di digestori ad uno o più stadi e se termofili, mesofili o altro."]
["[2] Indicare la denominazione dell'impianto in base alla qualifica IAFR ottenuta dal GSE.                                                                                                                          "]
["[3] Inserire l'anno di entrata in esercizio commerciale dell'impianto."]
["[4] Inserire la denominazione dell'impresa agricola registarta presso la C.C.I.A."]
[" [5] Specificare brevemente il regime reddituale ( tassazione catastale o reddito d'impresa ) e il regime IVA ( regime IVA speciale agrario o ordinario )  derivante dall'attività connessa di impresa agricola per la produzione energetica "]
["[6]  inserire il numeto totale di ettari di proprietà o in disponibilità dell'azienda agricola\n"]

{"sheet":"pag. 2","index":1,"n_rows":17,"n_cols":14,"rows_kept":17,"cut":false,"hidden":false,"merged":[[13,0,13,10],[14,0,14,10],[15,0,15,10],[16,0,16,10],[3,3,6,6],[8,3,8,6],[8,7,8,10],[9,3,9,6],[9,7,9,10],[11,0,11,10],[12,0,12,10],[3,9,3,10],[4,9,4,10],[5,9,5,10],[6,9,6,10],[7,3,7,6],[7,7,7,10],[0,0,0,2],[0,3,0,10],[1,3,1,6],[1,8,1,10],[2,3,2,6],[2,8,2,10]]}
["CARATTERISTICHE IMPIANTO",null,null,"Impianto di cogenerazione"]
[null,null,null,"Potenza elettrica nominale [7] : ",null,null,null,"kWe",249]
[null,null,null,"Potenza termica recuperabile [8] : ",null,null,null,"kWt",268]
[null,null,null,"Produzione elettrica  per trimestri [9]:                                      si fa presente che da agosto 2012 è andato in funzione un ampliamento d'impianto regolarmente allacciato e qualificato dal GSE",null,null,null,"Gen-Mar","kWhe",506483]
[null,null,null,null,null,null,null,"Apr-Giu ","kWhe",484648]
[null,null,null,null,null,null,null,"Lug-Set ","kWhe",529487]
[null,null,null,null,null,null,null,"Ott-Dic ","kWhe",871329]
[null,null,null,"Autoconsumo impianto [10] : ",null,null,null,{"$f":"SUM(2279527/(J4+J5+J6+J7))*(-1)+1","v":4.6999369133178925E-2}]
[null,null,null,"Destinazione dell'energia elettrica [11] : ",null,null,null,"cessione totale al GSE, ad eccezione degli autoconsumi dell'impianto di cogenerazione e delle perdite del trasformatore"]
[null,null,null,"Destinazione energia termica e percentuale di recupero su base annuale [12] : ",null,null,null,"Parziale utilizzo nell'impianto stesso per mantere a temperatura i digestori, nonché utilizzata in uno scambiatore di calore per produrre:                                                                         1. acqua sanitaria per i lavaggi nell'impianto di mungitura e dei refrigeratori del latte;                                                                                                       2. negli impianti igienico-sanitari e di riscaldamento dell'ufficio e della abitazioni aziendali;                                              3. per la preparazione del latte alimentare per i vitellini in fase di svezzamento;                                                                             4. per il mantenimento in temperatura (durante il periodo invernale) del melasso di barbabietola, stoccato in cisterne di acciaio inox;",null,null,null,null,null," "]
[]
["[7]  inserire la POTENZA ATTIVA NOMINALE elettrica in kWe. Il dato è indicato sulle targhe degli alternatori ( generatori ) e si ricava moltiplicando la POTENZA APPARENTE NOMINALE espressa in KVA per il  FATTORE DI POTENZA  COS φ , indicato in targa."]
["[8] Inserire la POTENZA TERMICA EFFICIENTE NETTA in  kW indicata dalla casa costruttrice "]
["[9] Scrivere la produzione per ogni trimestre   dell'anno solare precedente                                                                                                                                                                                                           "]
["[10]  inserire la % di autoconsumo di energia elettrica dei servizi ausiliari d'impianto nei casi in cui questi sono alimentati dall'impianto stesso, incluse le perdite di trasformazione e di linea."]
["[11] Specificare brevemente la destinazione della produzione di energia elettrica. Es. parziale autoconsumo aziendale per l'alimentazione dei carichi elettrici dell'impianto; parziale autoconsumo aziendale per l'alimentazione dei carichi elettrici dei processi produttivi aziendali; parziale vendita al GSE con meccanismo del RID; cessione totale con meccanismo della T.O.; ec..."]
[" [12] Specificare brevemente l'utilizzo di energia termica e se destinata ad edifici indicare i mc riscaldati"]

{"sheet":"pag. 3","index":2,"n_rows":22,"n_cols":12,"rows_kept":22,"cut":false,"hidden":false,"merged":[[11,3,11,4],[12,3,12,4],[0,0,0,2],[0,3,0,10],[1,3,1,7],[2,3,2,4],[7,3,7,4],[8,3,8,4],[3,3,3,4],[4,3,4,4],[5,3,5,4],[6,3,6,4],[9,3,9,4],[10,3,10,4]]}
["CARATTERISTICHE DELLA FILIERA",null,null,"Materia prima utilizzata [13]"]
[null,null,null,"Tipologia Aziendale",null,null,null,null,"Extra aziendale","tot biomassa","Resa biogas"," CH4"]
[null,null,null,"Colture Dedicate",null,"ha","t tal quale","resa   t/ha","t tal quale",null,"Nm3/t tal quale","%"]
[null,null,null,"Insilato di mais",null,10,750,{"$f":"G4/F4","v":75},null,{"$f":"I4+G4","v":750},200,54]
[null,null,null,"Insilato di triticale",null,10,350,{"$f":"G5/F5","v":35},null,{"$f":"I5+G5","v":350},170,53]
[null,null,null,null,null,null,null,{"$f":"G6/F6","v":{"$error":"#DIV/0!"}},null,{"$f":"I6+G6","v":0}]
[null,null,null,null,null,null,null,{"$f":"G7/F7","v":{"$error":"#DIV/0!"}},null,{"$f":"I7+G7","v":0}]
[null,null,null,"Effluenti Zootecnici",null,"n. capi [14]","t tal quale","resa t/n","t tal quale",null,"Nm3/t tal quale","%"]
[null,null,null,"bovini",null,1400,{"$f":"SUM(70*365)","v":25550},null,null,{"$f":"I9+G9","v":25550},30,60]
[null,null,null,"suini",null,null,null,null,null,{"$f":"I10+G10","v":0}]
[null,null,null,"avicoli",null,null,null,null,null,{"$f":"I11+G11","v":0}]
[null,null,null,"altro (specificare)",null,null,null,null,null,{"$f":"I12+G12","v":0}]
[null,null,null,"Sottoprodotti",null,null,"t tal quale",null,"t tal quale",null,"Nm3/t tal quale","%"]
[null,null,null,null,null,null,null,null,null,{"$f":"I14+G14","v":0}]
[null,null,null,null,null,null,null,null,null,0]
[null,null,null,null,null,null,null,null,null,0]
[null,null,null,null,null,null,null,null,null,0]
[null,null,null,null,null,null,null,null,null,0]
[null,null,null,null,null,null,null,null,null,0]
[]
["[13] La resa  e la biomassa totale vengono calcolati automaticamente dal foglio di calcolo"]
["[14] Consistenza media annua di capi"]

{"sheet":"pag. 4","index":3,"n_rows":23,"n_cols":5,"rows_kept":23,"cut":false,"hidden":false,"merged":[[18,0,18,11],[19,0,19,11],[20,0,20,11],[21,0,21,11],[22,0,22,11],[0,0,1,3],[12,4,12,11],[13,4,13,11],[14,4,14,11],[15,0,15,11],[16,0,16,11],[17,0,17,11],[6,4,6,11],[7,4,7,11],[8,4,8,11],[9,4,9,11],[10,4,10,11],[11,4,11,11],[0,4,0,11],[1,4,1,11],[2,4,2,11],[3,4,3,11],[4,4,4,11],[5,4,5,11]]}
["CARATTERISTICHE COSTRUTTIVE DELL'IMPIANTO",null,null,null,"Descrizione"]
[null,null,null,null,"Sistema di stoccaggio "]
[]
[null,null,null,null,"Sistema di alimentazione dell'impianto  [15]:"]
[]
[null,null,null,null,"Sistema di pretrattamento ingestato [16]:"]
[null,null,null,null,"Caratteristiche dei digestori  [17]: sono presenti 2 digestori: un primario a cui è collegato il ghiottone di alimentazione ed uno secondario da dove viene scaricato il digestato. All'interno di entrambi i digestori viene mantenuta una temperatura di 40°C. Le pale di miscelazione sono azionate da motore esterno e creano una miscelazione sia in verticale che lungo il perimetro circolare delle vasche (sitama ROTA GUIDO)."]
[null,null,null,null,"Dimensionamento delle vasche  [18]: vasca in cemento armato dimensioni 50 metri x 15 metri x 6 metri di altezza per una capienza di 4.500 mc."]
[null,null,null,null,"Sistema di desolforazione del biogas                                                                                                                                                                                                                             "]
[null,null,null,null,"Sistema di produzione di energia elettrica  [19]:         "]
[]
[null,null,null,null,"Sistema di produzione di energia termica e/o recupero di calore dall'impianto di cogenerazione [20]: l'intero sistema è dotato da un collettore principale dove viene convogliata l'acqua calda di scambio con i cogeneratori. Da questo abbiamo le partenze per le scambio con i digestori e con uno scambiatore generale aziendale utilizzato per i servizi descritti alla pag.2"]
[null,null,null,null,"Rete di teleriscaldamento/raffrescamento [21]:  "]
[null,null,null,null,"Dimensionamento delle vasche di lagunaggio e tempo di permanenza: "]
[null,null,null,null,"Sistemi innovativi per l'ottimizzazione dell'uso del digestato [22]: sono in corso delle prove con laboratorio accreditato \"CONSUL CHIMICA SRL\" per verificare la fattibilità di ricavare del pellet per stufe con la parte solida del digestato. Ad emerge che il prodotto se si riesce ad essiccare ha un ottimo potere calorifico; un problema da risolvere è l'aspetto legislativo che norma il suo utilizzo a tale scopo e residuo di odori ancora presenti nel prodotto."]
["[15] Per continuo si intende a coclee e per discontinuo si  intende mediante macchine agricole"]
["[16] Se si specificarne la tipologia"]
["[17]Specificare le dimensioni dei digestori, se mono o pluri-stadio, a che temperatura lavorano i batteri, che tipo di pale per la movimentazione dell'ingestato sono impiegate, in che numero e il tempo di ritenzione dell'ingestato."]
["[18]Specificare le misure delle vasche di stoccaggio della parte liquida del digestato."]
["[19]Specificare tipologia di motori."]
[" [20] Breve descrizione del numero e tipologia degli scambiatori di calore"]
["[21]Specificare i destinatari dell'intervento e la lunghezza della rete."]
["[22]Descrive se sono in funzione innovazioni tecnologiche non ordinarie  per la gestione dl digestato"]

{"sheet":"pag. 5","index":4,"n_rows":35,"n_cols":11,"rows_kept":35,"cut":false,"hidden":false,"merged":[[31,3,31,6],[31,7,31,10],[32,3,32,6],[32,7,32,10],[27,3,27,6],[28,3,28,6],[29,3,29,6],[29,7,29,10],[30,3,30,6],[30,7,30,10],[22,3,22,6],[22,7,22,10],[23,3,23,6],[24,3,24,6],[25,3,25,6],[26,3,26,6],[18,4,18,6],[18,7,18,9],[19,4,19,6],[19,7,19,9],[20,4,20,9],[21,3,21,6],[12,3,12,6],[12,7,12,8],[13,3,13,6],[13,7,13,8],[16,4,16,6],[16,7,16,9],[16,3,19,3],[14,3,15,10],[17,4,17,6],[17,7,17,9],[7,3,7,6],[8,3,8,6],[9,3,9,6],[10,3,10,6],[11,3,11,6],[11,7,11,8],[3,3,3,6],[3,8,3,9],[4,3,4,6],[4,8,4,9],[5,3,5,6],[6,3,6,6],[0,0,0,2],[0,3,0,10],[1,3,1,6],[1,8,1,9],[2,3,2,6],[2,8,2,9]]}
["CARATTERISTICHE DI GESTIONE",null,null,"Descrizione"]
[null,null,null,"Gestione del fondo",null,null,null,"ha","ha in zona vulnerabile       (-170 kg N/ha)"]
[null,null,null,"superficie a colture dedicate di proprietà",null,null,null,10,null,null,"ha"]
[null,null,null,"superficie a colture dedicate in affitto",null,null,null,null,null,null,"ha"]
[null,null,null,"tot superficie di proprietà o in conduzione",null,null,null,{"$f":"H4+H3","v":10},{"$f":"I4+I3","v":0},null,"tot ha"]
[null,null,null,"Gestione allevamento   [23]",null,null,null,"n. capi"]
[null,null,null,"bovini",null,null,null,{"$f":"'pag. 3'!F9","v":1400}]
[null,null,null,"suini",null,null,null,{"$f":"'pag. 3'!F10","v":0}]
[null,null,null,"avicoli",null,null,null,{"$f":"'pag. 3'!F11","v":0}]
[null,null,null,"altro (specificare)",null,null,null,{"$f":"'pag. 3'!F12","v":0}]
[null,null,null,"Gestione impianto"]
[null,null,null,"Costo servizio manutenzione  ",null,null,null,{"$f":"SUM(5000*12)","v":60000},null,"€/anno"]
[null,null,null,"Numero di fermi ordinari: cambio olio, carboni attivi, candele, ecc..",null,null,null,"n. 36",null,"totale ore/anno","h. 72"]
[null,null,null,"Numero di fermi straordinari: riparazioni, black-out Enel, ecc..",null,null,null,"n.",null,"totale ore/anno","h. 650"]
[null,null,null,"Trattamento digestato per l'abbattimento dei nitrati"]
[]
[null,null,null,null,"tipologia",null,null,"% riduzione Azoto"]
[null,null,null,null,"meccanica",null,null,null,null,null,"%"]
[null,null,null,null,"chimico-fisica",null,null,null,null,null,"%"]
[null,null,null,null,"biologica",null,null,null,null,null,"%"]
[]
[null,null,null,"Gestione del digestato"]
[null,null,null,"Descrizione sistema di gestione del digestato [24]:"]
[null,null,null,"tot digestato prodotto",null,null,null,{"$f":"SUM((70+2+1)*365)","v":26645},"t/anno"]
[null,null,null,"reimpiego aziendale",null,null,null,{"$f":"H24","v":26645},"t/anno"]
[null,null,null,"parte liquida",null,null,null,{"$f":"H25*0.65","v":17319.25},"t/anno"]
[null,null,null,"parte solida",null,null,null,{"$f":"H25-H26","v":9325.75},"t/anno"]
[null,null,null,"conferimento esterno",null,null,null,null,"t/anno"]
[null,null,null,"% Energia autoconsumata"]
[null,null,null,"autoconsumi esercizio impianto [10]",null,null,null,{"$f":"'pag. 2'!H8:K8","v":4.6999369133178925E-2}]
[null,null,null,"autoconsumi aziendali",null,null,null,0]
[null,null,null,"energia termica per digestore",null,null,null,0.12]
[null,null,null,"energia termica per usi aziendali",null,null,null,0.26]
["[23] Il numero di capi viene preso automaticamente dal campo numerato 14 (pag. 3)"]
["[24] Descrivere se e in che maniera viene separata la parte solida da quella liquida e la loro destinazione."]

{"sheet":"pag. 6","index":5,"n_rows":27,"n_cols":11,"rows_kept":27,"cut":false,"hidden":false,"merged":[[17,3,19,8],[17,9,19,11],[20,3,22,8],[20,9,22,11],[12,3,12,8],[13,3,13,8],[14,3,14,8],[16,0,16,2],[16,3,16,8],[16,9,16,11],[6,3,6,8],[7,3,7,8],[8,3,8,8],[9,3,9,8],[10,3,10,8],[11,3,11,8],[1,0,1,2],[1,3,1,8],[2,3,2,8],[3,3,3,8],[4,3,4,8],[5,3,5,8]]}
[]
["ANALISI COSTI BENEFICI",null,null,"Descrizione"]
[null,null,null,"Costo dell'impianto",null,null,null,null,null,{"$f":"SUM(1170000)","v":1170000},"Tot. €/anno"]
[null,null,null,"Costi di esercizio [25]",null,null,null,null,null,null,"€/anno"]
[null,null,null,"manutenzioni ordinarie e consumi: olio, carboni, gasolio, ecc..",null,null,null,null,null,{"$f":"SUM(5500*12)","v":66000},"€/anno"]
[null,null,null,"manutenzioni straordinarie: riparazioni",null,null,null,null,null,{"$f":"SUM(45000)","v":45000},"€/anno"]
[null,null,null,"costi per gestione reflui: separazione e stoccaggio",null,null,null,null,null,30000,"€/anno"]
[null,null,null,"interessi bancari 6/7 %",null,null,null,null,null,55000,"€/anno"]
[null,null,null,"Costi materia prima: insilati",null,null,null,null,null,{"$f":"SUM(750*55+350*50)","v":58750},"€/anno"]
[null,null,null,"Costo consumi elettrici ausiliari",null,null,null,null,null,800,"€/anno"]
[null,null,null,"Costo polizza assicurativa",null,null,null,null,null,5500,"€/anno"]
[null,null,null,"Costi gestione servizio vendita energia, CV e/o amministrativi [26]:",null,null,null,null,null,1200,"€/anno"]
[null,null,null,"Costo personale/manodopera",null,null,null,null,null,58000,"€/anno"]
[null,null,null,"Importo e tipologia di finanziamento [27]: decreto MIPAF 30% in conto capitale",null,null,null,null,null,{"$f":"SUM(350000)","v":350000},"€"]
[null,null,null,"Tempo di rientro dell'investimento",null,null,null,null,null,{"$f":"SUM((J3-J14)/(540000-(J5+J6+J7+J8+J9+J10+J11+J12+J13)))","v":3.7315130830489194},"anni"]
[]
["QUADRO NORMATIVO",null,null,"Descrizione"]
[null,null,null,"Autorizzazioni ottenute per  costruire ed avviare l'impianto [28]:",null,null,null,null,null,"Permesso a costruire rilasciato dal comune di competenza;                                                                          Certificazione IARFF e convenzione rilasciata dal GSE"]
[]
[]
[null,null,null,"Autorizzazioni ottenute per l'impiego di sottoprodotti/rifiuti"]
[]
[]
["[25] Inserire il dettaglio delle principali voci di costo per l'esercizio dell'impianto."]
["[26] Indicare i costi per i servizi di consulenza offerti da società specializzate per i servizi amministrativi (GSE, AEEG, AE, ecc.)."]
["[27] Specificare la natura del contributo pubblico"]
["[28]Breve descrizione dei processi burocratici più importanti."]

{"sheet":"pag. 7","index":6,"n_rows":21,"n_cols":4,"rows_kept":21,"cut":false,"hidden":false,"merged":[[20,0,21,11],[1,3,1,11],[9,3,9,11],[17,0,19,11],[10,3,16,11],[2,3,8,11],[1,0,2,2],[9,0,10,2]]}
[]
["NOTE TECNICHE PIANO DI MONITORAGGIO",null,null,"Descrizione [29]"]
[null,null,null,"MONITORAGGI GIORNALIERI:                                                                                                                                                                                               - controllo produzioni conferimento al GSE;                                                                                                                                                                - qualità biogas prodotto: CH4, H2S, O2 ed CO2;                                                                                                                                                - temperature digestori;                                                                                                                                                                                                  MONITORAGGIO SETTIMANALI:                                                                                                                                                                          - controllo olio e carboni attivi;                                                                                                                                                                                  - analisi con laboratorio da campo presente in azienda del digestato nelle vasche: PH, F/T, FOS e TAC"]
[]
[]
[]
[]
[]
[]
["PROGRAMMA DI DIVULGAZIONE",null,null,"Descrizione [30]"]
[null,null,null,"- Abbiamo dato disponibilità di visita guidata all'Istituto Profesionale Tecnico (ind. Agrario) di Cosenza;                    - L'impianto è stato oggetto d'interesse del dipartimento di chimica dell'Università della Calabria. Hanno valutato l'opportunità di eseguire studi sulle rese delle matrici, ma al momento non hanno fondi a disposizione per tale ricerca.                                                                                                                                                                                        - E' stato visitato da vari titolari di aziende agricole (soci della Cooperativa ASSOLAC, dove viene confereti l'intera produzione di latte) interessati a vederne il funzionamento per valutare l'opportunità di realizzarlo presso la loro azienda;"]
[]
[]
[]
[]
[]
[]
["[29] Dettagliare il piano di monitoraggio attivato conformemente a quanto presentato con la domanda di finanziamento. Descrivere le azioni e attività svolte, con una breve descrizione dei risultati ottenuti. In caso di modifiche ed adeguamenti del PIANO DI MONITORAGGIO motivare con una nota tecnica descrittiva (da allegare) le ragioni "]
[]
[]
["[30] Dettagliare il piano di divulgazione. Allegare una relazione tecnica descrittiva delle attività e risultati ottenuti utilizzando il FORMAT PER LE VISITE allegato."]